bitfinex/quotes_SOLUSD_20220218
["timestamp","ask_amount","ask_price","bid_price","bid_amount"]
[1645172502163,24.7782,95.798,95.723,23.0641]
[1645172502363,104.7,95.797,95.723,23.0641]
[1645172502565,24.7782,95.798,95.723,23.0641]
[1645172504264,24.7782,95.798,95.724,29.69779294]
[1645172508073,24.7782,95.798,95.73,15.6666]
[1645172508669,24.7782,95.798,95.731,29.69779294]
[1645172513073,104.4,95.797,95.731,29.69779294]
[1645172513375,111.3593831,95.797,95.723,23.0641]
[1645172513572,2.6293831,95.796,95.723,23.0641]
[1645172513973,2.6293831,95.796,95.724,29.69911777]
[1645172514175,104.4,95.789,95.724,29.69911777]
[1645172514379,104.4,95.789,95.702,52.53246636]
[1645172514380,104.4,95.779,95.702,52.53246636]
[1645172514578,104.4,95.777,95.703,23.4629]
[1645172514982,104.4,95.775,95.703,23.4629]
[1645172515180,104.4,95.773,95.704,45.87955441]
[1645172515381,104.4,95.769,95.704,45.87955441]
[1645172515983,104.4,95.769,95.705,29.70525793]
[1645172516181,5.222,95.768,95.705,29.70525793]
[1645172516581,5.222,95.769,95.705,29.70525793]
[1645172517184,104.4,95.768,95.705,29.70525793]
[1645172521010,5.222,95.769,95.705,29.70525793]
[1645172521213,15.27,95.77,95.705,29.70525793]
[1645172524316,5.222,95.789,95.71,15.6696]
[1645172524716,5.222,95.789,95.711,29.70525793]
[1645172526420,5.222,95.789,95.72,15.6679]
[1645172526619,38.0106,95.8,95.72,15.6679]
[1645172526817,38.0106,95.8,95.721,24.3578]
[1645172527217,45.61178399,95.799,95.721,54.06305793]
[1645172527418,45.61178399,95.799,95.722,29.70525793]
[1645172527618,38.0106,95.8,95.722,29.70525793]
[1645172528820,5.221,95.799,95.722,29.70525793]
[1645172531420,104.4,95.798,95.722,29.70525793]
[1645172532021,2.6293831,95.797,95.722,29.70525793]
[1645172532222,15.6703,95.79,95.722,29.70525793]
[1645172532423,5.221,95.789,95.722,29.70525793]
[1645172533625,15.6703,95.79,95.722,29.70525793]
[1645172535126,23.0563,95.798,95.722,29.70525793]
[1645172536631,107.0293831,95.797,95.722,29.70525793]
[1645172536828,104.4,95.795,95.722,29.70525793]
[1645172537032,104.4,95.793,95.722,29.70525793]
[1645172537237,15.27,95.79,95.722,29.70525793]
[1645172537428,5.221,95.789,95.722,29.70525793]
[1645172537830,2.6293831,95.788,95.721,24.3578]
[1645172538031,5.221,95.787,95.721,24.3578]
[1645172538459,24.256,95.786,95.721,24.3578]
[1645172538934,104.4,95.785,95.721,24.3578]
[1645172539136,5.221,95.784,95.721,24.3578]
[1645172539334,5.221,95.785,95.721,24.3578]
[1645172539732,15.672,95.78,95.721,24.3578]
[1645172539933,104.4,95.769,95.721,24.3578]
[1645172540133,104.4,95.767,95.721,24.3578]
[1645172540533,5.222,95.769,95.721,24.3578]
[1645172540736,5.222,95.769,95.705,5.221]
[1645172540933,2.6293831,95.768,95.705,5.221]
[1645172541135,107.0293831,95.768,95.706,29.70501275]
[1645172541637,107.0293831,95.768,95.707,22.543]
[1645172541839,104.4,95.766,95.707,22.543]
[1645172542333,2.6293831,95.765,95.707,22.543]
[1645172542534,104.4,95.764,95.707,22.543]
[1645172542735,15.27,95.76,95.707,22.543]
[1645172543337,30.9451,95.76,95.707,22.543]
[1645172543736,52.91964652,95.759,95.707,22.543]
[1645172544440,52.91964652,95.759,95.705,5.221]
[1645172544837,104.4,95.759,95.705,5.221]
[1645172545037,104.4,95.749,95.705,5.221]
[1645172546040,15.6788,95.74,95.705,5.221]
[1645172547740,5.223,95.739,95.705,5.221]
[1645172549945,15.6788,95.74,95.705,5.221]
[1645172550146,5.223,95.744,95.705,5.221]
[1645172550346,5.223,95.749,95.705,5.221]
[1645172550845,104.4,95.747,95.705,5.221]
[1645172551444,39.91485167,95.748,95.705,5.221]
[1645172552048,107.0293831,95.747,95.705,5.221]
[1645172552252,112.2523831,95.747,95.705,5.221]
[1645172552447,15.6784,95.74,95.705,5.221]
[1645172552847,5.223,95.739,95.705,5.221]
[1645172553251,5.223,95.739,95.686,52.11364864]
[1645172553463,104.4,95.738,95.686,52.11364864]
[1645172553663,104.4,95.738,95.681,23.3246]
[1645172553664,15.68,95.73,95.681,23.3246]
[1645172553863,15.68,95.73,95.658,23.7863]
[1645172554064,29.1495,95.729,95.659,23.1507]
[1645172554265,29.1495,95.729,95.659,52.8652569]
[1645172554664,29.1495,95.729,95.66,76.66417797]
[1645172555066,29.1495,95.729,95.661,29.7145569]
[1645172558267,5.224,95.729,95.661,29.7145569]
[1645172558667,15.27,95.73,95.661,29.7145569]
[1645172562272,24.0922,95.748,95.661,29.7145569]
[1645172565676,5.224,95.747,95.661,29.7145569]
[1645172566680,15.6783,95.74,95.661,29.7145569]
[1645172567683,24.0922,95.748,95.67,15.676]
[1645172567880,24.0922,95.748,95.671,24.6341]
[1645172568083,24.0922,95.748,95.671,54.3486569]
[1645172568483,77.35360384,95.748,95.672,29.7145569]
[1645172568884,24.0922,95.748,95.672,29.7145569]
[1645172569286,24.0922,95.748,95.68,15.6743]
[1645172569489,15.27,95.75,95.68,15.6743]
[1645172569686,15.27,95.75,95.681,29.7145569]
[1645172570289,15.27,95.75,95.682,24.9359]
[1645172570688,15.27,95.75,95.69,15.6728]
[1645172570888,15.27,95.75,95.691,42.1357258]
[1645172574200,24.5703,95.749,95.691,42.1357258]
[1645172575898,5.223,95.755,95.691,42.1357258]
[1645172576106,1.482349,95.771,95.691,42.1357258]
[1645172576299,1.482349,95.79,95.692,159.54665524]
[1645172576500,1.482349,95.795,95.694,104.4]
[1645172576700,1.482349,95.796,95.694,104.4]
[1645172576899,1.482349,95.795,95.701,104.4]
[1645172577198,24.255,95.809,95.701,104.4]
[1645172577199,1.482349,95.796,95.72,15.6667]
[1645172577400,1.482349,95.8,95.722,47.24549243]
[1645172577599,1.482349,95.798,95.722,47.24549243]
[1645172578001,1.482349,95.799,95.722,47.24549243]
[1645172578199,1.482349,95.801,95.722,47.24549243]
[1645172578402,1.482349,95.8,95.722,47.24549243]
[1645172579502,1.482349,95.803,95.722,47.24549243]
[1645172579716,1.482349,95.802,95.722,47.24549243]
[1645172580120,1.482349,95.803,95.722,47.24549243]
[1645172580519,1.482349,95.804,95.722,47.24549243]
[1645172580819,1.482349,95.803,95.722,47.24549243]
[1645172581026,1.482349,95.804,95.722,47.24549243]
[1645172582019,1.482349,95.802,95.722,47.24549243]
[1645172582317,5.221,95.801,95.722,47.24549243]
[1645172582518,7.8503831,95.801,95.722,47.24549243]
[1645172583122,2.6293831,95.801,95.722,47.24549243]
[1645172587024,5.221,95.8,95.722,47.24549243]
[1645172587424,20.8896,95.8,95.722,47.24549243]
[1645172587626,1.482349,95.797,95.721,24.0269]
[1645172587825,104.4,95.795,95.721,24.0269]
[1645172588027,1.482349,95.793,95.721,24.0269]
[1645172588228,2.95563713,95.82,95.721,24.0269]
[1645172588229,104.4,95.789,95.721,24.0269]
[1645172588428,15.6723,95.78,95.721,24.0269]
[1645172588629,24.32449148,95.778,95.722,49.53062825]
[1645172589630,24.32449148,95.778,95.721,24.0269]
[1645172590631,24.32449148,95.778,95.722,46.23681072]
[1645172591329,24.32449148,95.778,95.721,24.0269]
[1645172592330,24.32449148,95.778,95.722,48.87694256]
[1645172593131,104.4,95.769,95.68,15.6732]
[1645172593334,104.4,95.769,95.693,23.2554]
[1645172593632,5.222,95.768,95.693,52.95794637]
[1645172593830,15.6735,95.77,95.693,52.95794637]
[1645172593831,5.222,95.769,95.693,52.95794637]
[1645172594031,15.27,95.76,95.693,52.95794637]
[1645172594231,15.27,95.76,95.694,44.05927187]
[1645172594431,104.4,95.759,95.694,44.05927187]
[1645172594634,41.96842437,95.749,95.694,44.05927187]
[1645172594833,104.4,95.748,95.694,44.05927187]
[1645172596136,109.623,95.748,95.694,44.05927187]
[1645172600550,104.4,95.749,95.694,44.05927187]
[1645172600749,104.4,95.749,95.695,29.70251869]
[1645172601252,104.4,95.749,95.694,44.05927187]
[1645172608383,104.4,95.747,95.694,44.05927187]
[1645172613188,104.4,95.745,95.694,44.05927187]
[1645172613389,109.623,95.744,95.694,44.05927187]
[1645172613591,104.4,95.744,95.694,44.05927187]
[1645172613796,5.223,95.743,95.694,44.05927187]
[1645172614094,5.223,95.743,95.693,23.2554]
[1645172614494,104.4,95.739,95.656,24.2007]
[1645172614693,104.4,95.737,95.657,23.548]
[1645172614900,29.1424,95.738,95.657,23.548]
[1645172614901,104.4,95.735,95.657,23.548]
[1645172615093,27.42316114,95.734,95.659,54.81762335]
[1645172615294,104.4,95.719,95.659,54.81762335]
[1645172615595,104.4,95.717,95.66,29.71037878]
[1645172616192,104.4,95.717,95.66,52.96387878]
[1645172616394,15.6832,95.71,95.66,52.96387878]
[1645172616797,15.6832,95.71,95.661,29.71037878]
[1645172616997,107.0293831,95.709,95.661,29.71037878]
[1645172617197,107.0293831,95.709,95.59,52.2823]
[1645172617198,112.2533831,95.709,95.609,5.224]
[1645172617397,112.2533831,95.709,95.613,24.5518]
[1645172617998,104.4,95.707,95.654,39.74132936]
[1645172618201,5.224,95.706,95.654,39.74132936]
[1645172618400,15.6865,95.7,95.654,39.74132936]
[1645172618699,5.224,95.699,95.654,39.74132936]
[1645172619498,15.27,95.73,95.654,39.74132936]
[1645172619698,15.27,95.73,95.655,55.70321642]
[1645172619699,5.224,95.729,95.655,55.70321642]
[1645172619899,5.224,95.729,95.655,53.07383332]
[1645172620101,5.224,95.729,95.656,29.71413332]
[1645172620305,15.27,95.73,95.657,5.224]
[1645172620907,15.27,95.73,95.658,29.71413332]
[1645172621305,30.9501,95.73,95.658,29.71413332]
[1645172621504,29.2412,95.729,95.658,29.71413332]
[1645172621713,29.2412,95.729,95.657,29.71413332]
[1645172622106,29.2412,95.729,95.656,29.71413332]
[1645172623505,18.39378031,95.719,95.656,29.71413332]
[1645172625729,18.39378031,95.719,95.655,23.3597]
[1645172625935,5.224,95.718,95.655,23.3597]
[1645172626530,23.2726,95.717,95.655,23.32280219]
[1645172637744,1.482349,95.734,95.655,23.32280219]
[1645172637947,15.6796,95.74,95.656,7.8533831]
[1645172638144,15.6796,95.74,95.656,37.56288581]
[1645172638344,15.6796,95.74,95.657,32.33888581]
[1645172638544,23.6864,95.739,95.658,5.224]
[1645172638747,23.6864,95.739,95.658,7.8533831]
[1645172638944,15.6796,95.74,95.659,29.70950271]
[1645172639343,15.6796,95.74,95.66,15.6776]
[1645172639749,15.6796,95.74,95.661,29.70950271]
[1645172642250,15.6803,95.73,95.661,29.70950271]
[1645172642447,23.9868,95.729,95.661,29.70950271]
[1645172642647,23.9868,95.729,95.657,29.70950271]
[1645172643047,23.9868,95.729,95.656,29.70950271]
[1645172645351,25.469149,95.729,95.656,29.70950271]
[1645172645551,5.224,95.728,95.656,29.70950271]
[1645172646558,104.4,95.719,95.656,29.70950271]
[1645172646755,104.4,95.717,95.656,29.70950271]
[1645172646955,104.4,95.715,95.656,29.70950271]
[1645172647155,104.4,95.715,95.654,39.74132936]
[1645172647358,104.4,95.713,95.654,39.74132936]
[1645172647555,104.4,95.709,95.654,39.74132936]
[1645172647958,15.6862,95.7,95.654,39.74132936]
[1645172648656,5.224,95.699,95.654,39.74132936]
[1645172649862,15.6862,95.7,95.654,39.74132936]
[1645172650059,5.224,95.709,95.654,39.74132936]
[1645172650259,15.27,95.71,95.654,39.74132936]
[1645172650460,15.27,95.71,95.655,24.7906]
[1645172650860,15.27,95.71,95.655,23.2906]
[1645172661299,104.4,95.716,95.655,23.2906]
[1645172666302,104.4,95.716,95.656,29.71851923]
[1645172666903,104.4,95.709,95.656,29.71851923]
[1645172667103,105.882349,95.709,95.655,23.2906]
[1645172667404,104.4,95.709,95.655,23.2906]
[1645172668105,1.482349,95.708,95.655,23.2906]
[1645172668304,104.4,95.707,95.655,23.2906]
[1645172668804,105.882349,95.707,95.655,23.2906]
[1645172669005,104.4,95.707,95.655,23.2906]
[1645172669205,104.4,95.707,95.654,39.74132936]
[1645172669406,104.4,95.699,95.654,39.74132936]
[1645172669606,104.4,95.697,95.654,39.74132936]
[1645172669808,104.4,95.697,95.642,23.5317]
[1645172670907,104.4,95.697,95.654,44.36759391]
[1645172671109,15.6852,95.7,95.654,44.36759391]
[1645172671309,1.482349,95.714,95.654,44.36759391]
[1645172671508,1.482349,95.715,95.655,24.2281]
[1645172672910,105.882349,95.716,95.655,24.2281]
[1645172673109,1.482349,95.715,95.655,24.2281]
[1645172673309,15.6837,95.71,95.655,24.2281]
[1645172673509,15.6837,95.71,95.656,29.7197466]
[1645172679121,5.0,95.697,95.656,29.7197466]
[1645172684529,5.0,95.697,95.655,24.2281]
[1645172684947,5.0,95.697,95.656,29.72033991]
[1645172706773,5.0,95.697,95.657,5.224]
[1645172706973,1.482349,95.715,95.657,5.224]
[1645172707172,1.482349,95.719,95.657,11.134]
[1645172707371,1.482349,95.731,95.658,29.72033991]
[1645172707577,1.482349,95.743,95.659,5.224]
[1645172707779,1.482349,95.743,95.66,15.6771]
[1645172707975,1.482349,95.747,95.689,104.4]
[1645172708171,1.482349,95.754,95.691,104.4]
[1645172708372,15.27,95.78,95.69,24.2606]
[1645172708373,1.482349,95.752,95.692,5.223]
[1645172708575,2.95563713,95.779,95.693,29.72033991]
[1645172708576,1.482349,95.756,95.693,29.72033991]
[1645172708774,1.482349,95.759,95.694,5.222]
[1645172708974,1.482349,95.763,95.695,29.72033991]
[1645172709375,1.482349,95.763,95.7,15.6708]
[1645172709575,1.482349,95.769,95.701,5.222]
[1645172709975,1.482349,95.769,95.702,53.34713991]
[1645172710178,1.482349,95.769,95.703,5.222]
[1645172710575,1.482349,95.772,95.703,5.222]
[1645172711176,1.482349,95.771,95.703,5.222]
[1645172711378,1.482349,95.772,95.703,5.222]
[1645172711578,1.482349,95.774,95.703,5.222]
[1645172711780,49.29316122,95.775,95.703,5.222]
[1645172712585,47.81081222,95.775,95.703,5.222]
[1645172713981,47.81081222,95.775,95.702,23.6268]
[1645172714783,5.222,95.779,95.702,23.6268]
[1645172715184,5.222,95.782,95.702,23.6268]
[1645172716485,5.222,95.782,95.71,15.6696]
[1645172723312,5.222,95.782,95.702,23.6268]
[1645172728121,63.73327805,95.783,95.703,5.222]
[1645172730025,63.73327805,95.783,95.702,23.6268]
[1645172731226,65.21562705,95.783,95.702,23.6268]
[1645172731427,5.222,95.782,95.702,23.6268]
[1645172732028,15.6719,95.78,95.702,23.6268]
[1645172733232,15.6719,95.78,95.703,5.222]
[1645172733830,15.6719,95.78,95.702,23.6268]
[1645172734531,1.482349,95.778,95.702,23.6268]
[1645172734730,1.482349,95.775,95.702,23.6268]
[1645172734930,1.482349,95.776,95.702,23.6268]
[1645172736330,1.482349,95.775,95.702,23.6268]
[1645172736730,1.482349,95.769,95.702,23.6268]
[1645172737533,1.482349,95.765,95.702,23.6268]
[1645172739134,1.482349,95.769,95.702,23.6268]
[1645172739331,1.482349,95.769,95.703,5.222]
[1645172740536,1.482349,95.769,95.702,23.6268]
[1645172740736,1.482349,95.767,95.702,23.6268]
[1645172741535,1.482349,95.766,95.702,23.6268]
[1645172743836,1.482349,95.765,95.702,23.6268]
[1645172744438,1.482349,95.766,95.702,23.6268]
[1645172744639,1.482349,95.765,95.702,23.6268]
[1645172746044,1.482349,95.764,95.702,23.6268]
[1645172746442,1.482349,95.765,95.702,23.6268]
[1645172746943,1.482349,95.764,95.702,23.6268]
[1645172747346,1.482349,95.765,95.702,23.6268]
[1645172748244,1.482349,95.763,95.695,5.222]
[1645172748444,1.482349,95.747,95.683,23.3739]
[1645172748645,1.482349,95.746,95.683,23.3739]
[1645172748843,5.223,95.762,95.683,23.3739]
[1645172748844,1.482349,95.744,95.683,23.3739]
[1645172749244,25.1073378,95.744,95.684,54.44619185]
[1645172749444,1.482349,95.748,95.684,54.44619185]
[1645172749649,1.482349,95.748,95.685,5.223]
[1645172749846,1.482349,95.757,95.685,5.223]
[1645172750048,1.482349,95.757,95.686,2.6293831]
[1645172750247,1.482349,95.758,95.687,5.223]
[1645172750448,1.482349,95.757,95.687,5.223]
[1645172750649,1.482349,95.758,95.688,2.6293831]
[1645172751058,1.482349,95.758,95.689,5.223]
[1645172751355,41.22331631,95.758,95.69,15.6726]
[1645172751751,22.5619,95.757,95.69,15.6726]
[1645172751953,22.5619,95.757,95.69,18.3019831]
[1645172752971,22.5619,95.757,95.691,5.223]
[1645172753168,22.5619,95.757,95.691,34.92406682]
[1645172753370,22.5619,95.757,95.692,2.6293831]
[1645172753571,22.5619,95.757,95.693,5.223]
[1645172753979,22.5619,95.757,95.694,2.6293831]
[1645172754280,22.5619,95.757,95.695,23.5352]
[1645172754481,22.5619,95.757,95.695,28.7582]
[1645172754680,22.5619,95.757,95.696,2.6293831]
[1645172754877,22.5619,95.757,95.697,5.223]
[1645172755478,22.5619,95.757,95.695,23.5352]
[1645172755681,1.482349,95.761,95.695,23.5352]
[1645172755878,1.482349,95.767,95.701,104.4]
[1645172756078,24.8525,95.769,95.702,5.222]
[1645172756278,24.8525,95.769,95.702,7.8513831]
[1645172756481,24.8525,95.769,95.703,2.6293831]
[1645172757280,24.8525,95.769,95.704,29.69900025]
[1645172757682,24.8525,95.769,95.705,2.6293831]
[1645172757882,24.8525,95.769,95.705,7.8513831]
[1645172758282,24.8525,95.769,95.706,25.7463831]
[1645172759282,24.8525,95.769,95.706,23.117]
[1645172759484,24.8525,95.769,95.71,15.6696]
[1645172759885,24.8525,95.769,95.711,2.6293831]
[1645172760483,24.8525,95.769,95.712,29.69825001]
[1645172760683,24.8525,95.769,95.713,50.01168781]
[1645172761889,1.482349,95.773,95.713,50.01168781]
[1645172762089,1.482349,95.783,95.714,37.54602648]
[1645172762288,1.482349,95.785,95.714,37.54602648]
[1645172762488,1.482349,95.785,95.715,32.32402648]
[1645172762696,22.7109,95.786,95.721,104.4]
[1645172762890,22.6835,95.8,95.721,104.4]
[1645172762891,1.482349,95.788,95.722,5.221]
[1645172763090,1.482349,95.792,95.723,23.185]
[1645172763391,1.482349,95.793,95.724,5.221]
[1645172763814,1.482349,95.793,95.725,29.69464338]
[1645172764019,1.482349,95.793,95.726,5.221]
[1645172764214,1.482349,95.794,95.726,5.221]
[1645172764415,1.482349,95.794,95.725,29.69464338]
[1645172764416,1.482349,95.792,95.73,15.6664]
[1645172764614,1.482349,95.791,95.73,15.6664]
[1645172765015,1.482349,95.792,95.73,15.6664]
[1645172765314,1.482349,95.793,95.73,15.6664]
[1645172765515,1.482349,95.792,95.73,15.6664]
[1645172765716,5.221,95.808,95.73,15.6664]
[1645172765917,5.221,95.809,95.731,47.70729567]
[1645172766520,24.0074,95.808,95.731,47.70729567]
[1645172766716,5.22,95.807,95.731,47.70729567]
[1645172768121,5.22,95.807,95.74,15.6647]
[1645172768322,24.0074,95.808,95.74,15.6647]
[1645172768527,5.22,95.823,95.741,24.2937]
[1645172768722,0.1284463,95.824,95.742,5.22]
[1645172768723,24.6416,95.822,95.742,5.22]
[1645172768922,24.6416,95.822,95.742,37.53794037]
[1645172769323,24.6416,95.822,95.75,15.6627]
[1645172769622,24.6416,95.822,95.751,40.6766359]
[1645172770426,24.6416,95.822,95.752,24.0047]
[1645172773928,104.4,95.821,95.752,24.0047]
[1645172774132,109.619,95.821,95.752,24.0047]
[1645172774431,104.4,95.819,95.752,24.0047]
[1645172774631,5.219,95.818,95.752,24.0047]
[1645172776129,2.6293831,95.817,95.731,5.219]
[1645172776331,15.6674,95.81,95.731,5.219]
[1645172776531,109.62,95.809,95.731,5.219]
[1645172776733,104.4,95.807,95.731,5.219]
[1645172776930,5.22,95.806,95.731,5.219]
[1645172777431,104.4,95.805,95.731,5.219]
[1645172778542,107.0293831,95.805,95.731,5.219]
[1645172778731,5.22,95.804,95.731,5.219]
[1645172779631,5.22,95.804,95.721,38.94921212]
[1645172781837,104.4,95.805,95.721,38.94921212]
[1645172782234,104.4,95.805,95.722,29.69783944]
[1645172782437,5.221,95.804,95.722,29.69783944]
[1645172782635,5.221,95.805,95.721,38.94921212]
[1645172782836,104.4,95.804,95.721,38.94921212]
[1645172783035,104.4,95.802,95.721,38.94921212]
[1645172783234,104.4,95.802,95.718,22.8652]
[1645172783435,109.621,95.801,95.718,22.8652]
[1645172783637,104.4,95.801,95.718,22.8652]
[1645172784239,104.4,95.801,95.718,76.82978368]
[1645172788543,104.4,95.805,95.718,76.82978368]
[1645172788743,104.4,95.803,95.718,76.82978368]
[1645172789145,104.4,95.801,95.718,76.82978368]
[1645172794177,104.4,95.805,95.718,76.82978368]
[1645172794374,104.4,95.803,95.718,76.82978368]
[1645172796479,104.4,95.801,95.718,76.82978368]
[1645172801386,23.4877,95.806,95.72,15.6688]
[1645172801585,23.4877,95.806,95.721,5.221]
[1645172807502,23.4877,95.806,95.72,15.6688]
[1645172807697,1.19,95.805,95.72,15.6688]
[1645172808518,1.19,95.805,95.721,29.69733775]
[1645172808921,1.19,95.805,95.72,15.6688]
[1645172810523,1.19,95.805,95.721,29.69742244]
[1645172811024,1.19,95.805,95.721,32.32680554]
[1645172811222,1.19,95.805,95.722,2.6293831]
[1645172813826,1.19,95.805,95.73,15.6672]
[1645172814026,23.4877,95.806,95.73,15.6672]
[1645172814627,23.4877,95.806,95.731,23.6596]
[1645172818728,23.4877,95.806,95.733,41.95178978]
[1645172819132,23.4877,95.806,95.734,2.6293831]
[1645172820631,5.84474698,95.808,95.734,2.6293831]
[1645172820830,1.19,95.818,95.734,2.6293831]
[1645172820831,1.19,95.818,95.74,15.6652]
[1645172821029,0.49439808,95.829,95.74,15.6652]
[1645172821233,0.49439808,95.829,95.741,37.53842414]
[1645172821432,0.49439808,95.829,95.742,22.7051]
[1645172821635,0.49439808,95.829,95.743,5.22]
[1645172822030,0.49439808,95.829,95.744,29.68904104]
[1645172822232,0.49439808,95.829,95.745,5.22]
[1645172822532,0.49439808,95.829,95.745,7.8493831]
[1645172822835,0.49439808,95.829,95.746,32.31842414]
[1645172823032,0.49439808,95.829,95.747,5.22]
[1645172823233,0.49439808,95.829,95.748,43.47715955]
[1645172823432,0.49439808,95.829,95.76,15.6612]
[1645172823633,0.49439808,95.829,95.761,29.1566]
[1645172824033,0.49439808,95.829,95.762,32.31842414]
[1645172824232,0.49439808,95.829,95.763,55.1044881]
[1645172824435,0.49439808,95.829,95.763,84.79352914]
[1645172824633,0.49439808,95.829,95.77,15.6598]
[1645172824835,0.49439808,95.829,95.771,5.219]
[1645172825234,0.49439808,95.829,95.772,54.52394104]
[1645172825432,0.49439808,95.829,95.772,62.37232414]
[1645172825635,0.49439808,95.829,95.773,2.6293831]
[1645172825833,0.49439808,95.829,95.774,5.219]
[1645172826235,0.49439808,95.829,95.78,15.6565]
[1645172828040,0.49439808,95.829,95.772,24.8349]
[1645172828249,0.49439808,95.829,95.76,15.6613]
[1645172828442,1.185,95.823,95.71,5.219]
[1645172828642,104.4,95.819,95.692,5.22]
[1645172828841,104.4,95.817,95.694,50.70040634]
[1645172829043,1.182,95.816,95.694,50.70040634]
[1645172829250,190.89,95.81,95.694,50.70040634]
[1645172829543,109.82,95.801,95.694,50.70040634]
[1645172829944,120.69592265,95.801,95.694,50.70040634]
[1645172830445,172.52592265,95.801,95.694,50.70040634]
[1645172830642,167.52592265,95.801,95.694,50.70040634]
[1645172831442,184.97193615,95.801,95.694,50.70040634]
[1645172833843,132.72193615,95.801,95.694,50.70040634]
[1645172834044,115.27592265,95.801,95.694,50.70040634]
[1645172834442,104.4,95.801,95.694,50.70040634]
[1645172836952,104.4,95.801,95.695,5.222]
[1645172838346,104.4,95.801,95.694,50.70040634]
[1645172839548,104.4,95.817,95.694,50.70040634]
[1645172839747,104.4,95.809,95.695,5.221]
[1645172840148,104.4,95.807,95.695,5.221]
[1645172840548,2.6293831,95.806,95.695,5.221]
[1645172840954,104.4,95.804,95.695,5.221]
[1645172841549,2.6293831,95.803,95.695,5.221]
[1645172842552,104.4,95.802,95.695,5.221]
[1645172842952,107.0293831,95.802,95.695,5.221]
[1645172843954,121.8460135,95.801,95.695,5.221]
[1645172844153,121.8460135,95.801,95.694,50.70040634]
[1645172844354,104.4,95.801,95.694,50.70040634]
[1645172844755,116.56043935,95.801,95.694,50.70040634]
[1645172844953,132.74646298,95.801,95.694,50.70040634]
[1645172845554,149.94061059,95.801,95.694,50.70040634]
[1645172846154,147.87061059,95.801,95.694,50.70040634]
[1645172846558,200.12061059,95.801,95.694,50.70040634]
[1645172847458,147.87061059,95.801,95.694,50.70040634]
[1645172854164,147.87061059,95.801,95.672,5.222]
[1645172854362,147.87061059,95.801,95.657,5.222]
[1645172854762,200.12061059,95.801,95.657,5.222]
[1645172855362,200.12061059,95.801,95.658,50.20283597]
[1645172855563,200.12061059,95.801,95.659,5.223]
[1645172863495,199.12061059,95.801,95.659,5.223]
[1645172865796,199.12061059,95.801,95.658,50.20283597]
[1645172866400,155.65,95.799,95.658,50.20283597]
[1645172866598,103.4,95.749,95.658,50.20283597]
[1645172866802,103.4,95.749,95.659,5.223]
[1645172867800,15.6876,95.73,95.659,5.223]
[1645172868000,104.4,95.755,95.659,5.223]
[1645172869303,15.6829,95.75,95.659,5.223]
[1645172869501,104.4,95.749,95.659,5.223]
[1645172870302,15.6854,95.73,95.659,5.223]
[1645172872304,31.3696,95.73,95.659,5.223]
[1645172877711,104.4,95.729,95.659,5.223]
[1645172877914,15.6872,95.71,95.659,5.223]
[1645172880416,15.6872,95.71,95.658,50.20283597]
[1645172881920,31.3691,95.73,95.658,50.20283597]
[1645172883548,15.682,95.75,95.658,50.20283597]
[1645172883744,15.682,95.75,95.659,5.224]
[1645172883948,15.682,95.75,95.66,15.27]
[1645172884144,15.682,95.75,95.661,5.224]
[1645172884944,15.682,95.75,95.662,24.6691]
[1645172885144,31.6822,95.77,95.662,24.6691]
[1645172885744,1.48343875,95.733,95.662,24.6691]
[1645172886545,1.48343875,95.732,95.662,24.6691]